{"text_format":"1","workbook":"xlsx","n_sheets":3,"sheets":["wykaz dzialań","szczegóły","tech"],"not_rendered":{"charts":0,"images":2,"macros":1,"external_links":0,"defined_names":7,"comments":0,"pivot_tables":0},"unopened":[],"bounds":{"document_bytes":16777216,"sheet_cells":100000,"rows_first":2000,"rows_last":500,"rows_between":2000,"halvings":0,"cell_chars":16384,"cell_head_chars":4096},"cells_cut":0,"cells_raw":0,"read":"whole","date_system":"1900"}

{"sheet":"wykaz dzialań","index":0,"n_rows":16,"n_cols":4,"rows_kept":16,"cut":false,"hidden":false,"merged":[[15,0,15,1],[1,2,1,3]]}
[]
["L.p.","Działania informacyjno-promocyjne","BUDŻET"]
[null,null,"Planowany","Zrealizowany"]
["5.1","Udział w konferencjach, szkoleniach, spotkaniach, seminariach, sympozjach itp. organizowanych przez inne instytucje.",null,{"$f":"szczegóły!F10","v":0}]
["5.2","Organizowanie konferencji, szkoleń, warsztatów, seminariów, konkursów, wizyt studyjnych, konferencji prasowych itp.",null,{"$f":"szczegóły!F19","v":0}]
["5.3","Organizowanie/współorganizowanie imprez promocyjnych i sponsoring.",null,{"$f":"szczegóły!F27","v":0}]
["5.4","Wykonanie materiałów promocyjnych (gadżety).",null,{"$f":"szczegóły!E35","v":0}]
["5.5","Przygotowanie, opracowanie graficzne, druk i dystrybucja materiałów informacyjno-promocyjnych.",null,{"$f":"szczegóły!D44","v":0}]
["5.6","Prowadzenie stron internetowych, w tym modernizacja. ",null,{"$f":"szczegóły!E54","v":0}]
["5.7","Przygotowanie, wyemitowanie audycji informacyjnych w TV, radio (w szczególności liczba, termin, tematyka, miejsce emisji).  ",null,{"$f":"szczegóły!E64","v":0}]
["5.8","Przygotowanie artykułów sponsorowanych i wykup powierzchni w prasie (reklama prasowa).",null,{"$f":"szczegóły!E72","v":0}]
["5.9","Współpraca ze środkami masowego przekazu w zakresie przekazywania informacji. ",null,{"$f":"szczegóły!E80","v":0}]
["5.10"," Udział w  międzynarodowych, ogólnopolskich, regionalnych lub lokalnych imprezach w ramach działań informacyjno-promocyjnych.",null,{"$f":"szczegóły!E89","v":0}]
["5.11","Monitoring prowadzonych działań informacyjno – promocyjnych.",null,{"$f":"szczegóły!D97","v":0}]
["5.12","Pisemne udzielanie odpowiedzi beneficjentom"]
["Razem",null,null,{"$f":"SUM(D4:D15)","v":0}]

{"sheet":"szczegóły","index":1,"n_rows":100,"n_cols":6,"rows_kept":100,"cut":false,"hidden":false,"merged":[[0,0,0,5],[98,0,98,1],[81,0,81,4],[56,0,56,4],[65,0,65,4],[20,0,20,5],[73,0,73,4],[90,0,90,3],[46,0,46,4],[1,0,1,5],[11,0,11,5],[28,0,28,4],[37,0,37,3]]}
["Realizacja Planu Informacji i Promocji PO RYBY 2014-2020 w roku 2019 - stan na ……….."]
["5.1   Udział w spotkaniach, konferencjach, szkoleniach, seminariach, sympozjach itp. organizowanych przez inne instytucje/podmioty"]
["Instytucja Pośrednicząca","Opis działania","Miejsce","Termin","Liczba uczestników","Koszt (zł)"]
[]
[]
[]
[]
[]
[]
[null,null,null,"Razem",{"$f":"SUM(E4:E9)","v":0},{"$f":"SUM(F4:F9)","v":0}]
[]
["5.2   Organizowanie spotkań, konferencji, szkoleń, warsztatów, seminariów, konkursów, wizyt studyjnych, konferencji prasowych itp."]
["Instytucja Pośrednicząca","Opis działania","Miejsce","Termin","Liczba uczestników","Koszt (zł)"]
[]
[]
[]
[]
[]
[null,null,null,"Razem",{"$f":"SUM(E14:E18)","v":0},{"$f":"SUM(F14:F18)","v":0}]
[]
["5.3   Organizowanie/współorganizowanie imprez promocyjnych i sponsoring"]
["Instytucja Pośrednicząca","Opis działania","Miejsce","Termin","Liczba uczestników","Koszt (zł)"]
[]
[]
[]
[]
[null,null,null,"Razem",{"$f":"SUM(E22:E26)","v":0},{"$f":"SUM(F22:F26)","v":0}]
[]
["5.4   Wykonanie materiałów promocyjnych (gadżety):"]
["Instytucja Pośrednicząca","Opis działania","Liczba egzemplarzy","Termin","Koszt (zł)"]
[]
[]
[]
[]
[null,null,null,"Razem",{"$f":"SUM(E31:E34)","v":0}]
[]
[]
["5.5   Przygotowanie, opracowanie graficzne, druk i dystrybucja materiałów informacyjno-promocyjnych"]
["Instytucja Pośrednicząca","Opis działania","Nakład (egz.)","Koszt (zł)"]
[]
[]
[]
[]
[null,null,"Razem",{"$f":"SUM(D40:D43)","v":0}]
[]
[]
["5.6   Prowadzenie stron internetowych, w tym modernizacja "]
["Instytucja Pośrednicząca","Opis działania","Liczba odwiedzin na stronie","Termin realizacji","Koszt (zł)"]
[]
[]
[]
[]
[]
[null,null,null,"Razem",{"$f":"SUM(E49:E53)","v":0}]
[]
[]
["5.7   Przygotowanie, wyemitowanie audycji informacyjnych w TV, radio (w szczególności liczba, termin, tematyka, miejsce emisji)"]
["Instytucja Pośrednicząca","Opis działania","Liczba emisji","Termin realizacji","Koszt (zł)"]
[]
[]
[]
[]
[]
[null,null,null,"Razem",{"$f":"SUM(E59:E63)","v":0}]
[]
["5.8   Przygotowanie artykułów sponsorowanych i wykup powierzchni w prasie (reklama prasowa)"]
["Instytucja Pośrednicząca","Opis działania","Liczba  artykułów","Termin publikacji","Koszt (zł)"]
[]
[]
[]
[]
[null,null,null,"Razem",{"$f":"SUM(E67:E71)","v":0}]
[]
["5.9   Współpraca ze środkami masowego przekazu w zakresie przekazywania informacji "]
["Instytucja Pośrednicząca","Opis działania","Liczba emisji","Termin realizacji","Koszt (zł)"]
[]
[]
[]
[]
[null,null,null,"Razem",{"$f":"SUM(E76:E79)","v":0}]
[]
["5.10 Udział w międzynarodowych, ogólnopolskich, regionalnych lub lokalnych imprezach poświęconych rybołówstwu, rybactwu, przetwórstwu rybnemu lub funduszom unijnym"]
["Instytucja Pośrednicząca","Opis działania","Miejsce i termin","Liczba uczestników","Koszt (zł)"]
[]
[]
[]
[]
[]
[null,null,"Razem",{"$f":"SUM(D84:D88)","v":0},{"$f":"SUM(E84:E88)","v":0}]
[]
["5.11 Monitoring prowadzonych działań informacyjno – promocyjnych"]
["Instytucja Pośrednicząca","Opis działania","Miejsce i termin","Koszt (zł)"]
[null,"Np. ankieta wśród uczestników szkolenia …."]
[]
[]
[]
[null,null,"Razem",{"$f":"SUM(D93:D96)","v":0}]
[]
["5.12 Pisemne udzielanie odpowiedzi beneficjentom"]
["Instytucja Pośrednicząca","Opis działania"]

{"sheet":"tech","index":2,"n_rows":18,"n_cols":1,"rows_kept":18,"cut":false,"hidden":false,"merged":[]}
[]
["ARiMR"]
["SW Dolnośląskiego"]
["SW Kujawsko-Pomorskiego"]
["SW Lubelskiego"]
["SW Lubuskiego"]
["SW Łódzkiego"]
["SW Małopolskiego"]
["SW Mazowieckiego"]
["SW Opolskiego"]
["SW Podkarpackiego"]
["SW Podlaskiego"]
["SW Pomorskiego"]
["SW Śląskiego"]
["SW Świętokrzyskiego"]
["SW Warmińsko-Mazurskiego"]
["SW Wielkopolskiego"]
["SW Zachodniopomorskiego"]